fUST/lending_fUST_20260115
["ID","MTS","AMOUNT","RATE_DAILY","PERIOD"]
[401958846,1768421444345,-293.503999,0.00021918,2]
[401958848,1768421444355,-151.0,0.00021918,2]
[401958850,1768421444368,-293.503999,0.00021918,2]
[401958853,1768421444378,-151.0,0.00021918,2]
[401958855,1768421444388,-582.913993,0.00021918,2]
[401958857,1768421444397,-582.913993,0.00021918,2]
[401958859,1768421444408,-582.913993,0.00021918,2]
[401958860,1768421444418,-582.913993,0.00021918,2]
[401958863,1768421444428,-151.0,0.00021918,2]
[401958865,1768421444439,-240.755518,0.00021918,2]
[401958867,1768421444449,-151.0,0.00021918,2]
[401958869,1768421444458,-275.55471384,0.00021918,2]
[401958871,1768421444467,-151.0,0.00021918,2]
[401958873,1768421444476,-151.0,0.00021918,2]
[401958875,1768421444486,-151.0,0.00021918,2]
[401958876,1768421444495,-151.0,0.00021918,2]
[401958879,1768421444505,-151.0,0.00021918,2]
[401958880,1768421444514,-151.0,0.00021918,2]
[401958883,1768421444524,-151.0,0.00021918,2]
[401958884,1768421444534,-1303.742173,0.00021918,2]
[401958886,1768421444544,-151.0,0.00021918,2]
[401958888,1768421444553,-1303.742173,0.00021918,2]
[401958890,1768421444563,-1303.742173,0.00021918,2]
[401958893,1768421444572,-1303.742173,0.00021918,2]
[401958895,1768421444582,-263.265987,0.00021918,2]
[401958896,1768421444591,-171.320259,0.00021918,2]
[401958898,1768421444601,-263.265987,0.00021918,2]
[401958900,1768421444611,-263.265987,0.00021918,2]
[401958902,1768421444620,-263.265987,0.00021918,2]
[401958905,1768421444629,-371.616493,0.00021918,2]
[401958906,1768421444639,-151.0,0.00021918,2]
[401958908,1768421444648,-371.616493,0.00021918,2]
[401958910,1768421444658,-371.616493,0.00021918,2]
[401958912,1768421444667,-371.616493,0.00021918,2]
[401958915,1768421444678,-151.0,0.00021918,2]
[401958917,1768421444688,-151.0,0.00021918,2]
[401958919,1768421444697,-151.0,0.00021918,2]
[401958921,1768421444706,-225.938304,0.00021918,2]
[401958922,1768421444715,-151.0,0.00021918,2]
[401958924,1768421444725,-151.0,0.00021918,2]
[401958926,1768421444734,-151.0,0.00021918,2]
[401958928,1768421444744,-151.0,0.00021918,2]
[401958930,1768421444754,-151.0,0.00021918,2]
[401958932,1768421444764,-151.0,0.00021918,2]
[401958935,1768421444774,-151.0,0.00021918,2]
[401958936,1768421444783,-151.0,0.00021918,2]
[401958939,1768421444793,-151.0,0.00021918,2]
[401958940,1768421444802,-151.0,0.00021918,2]
[401958942,1768421444812,-151.0,0.00021918,2]
[401958945,1768421444821,-151.0,0.00021918,2]
[401958947,1768421444831,-7864.52541442,0.00021918,2]
[401958949,1768421444840,-1200.0,0.00021918,2]
[401958951,1768421444850,-650.0,0.00021918,2]
[401958953,1768421444861,-180.32387442,0.00021918,2]
[401958954,1768421444871,-721.29549768,0.00021918,2]
[401958956,1768421444880,-1622.91486978,0.00021918,2]
[401958959,1768421444891,-746.45167351,0.00021918,2]
[401958960,1768421444900,-2985.80669405,0.00021918,2]
[401958962,1768421444911,-371.50990874,0.00021918,2]
[401958965,1768421444921,-1486.03963495,0.00021918,2]
[401958967,1768421444931,-3343.58917864,0.00021918,2]
[401958969,1768421444941,-5944.1585398,0.00021918,2]
[401958971,1768421444951,-9287.74771843,0.00021918,2]
[401958973,1768421444961,-850.83895128,0.00021918,2]
[401958975,1768421444970,-3403.35580513,0.00021918,2]
[401958976,1768421444979,-7657.55056153,0.00021918,2]
[401958978,1768421444988,-544.60368034,0.00021918,2]
[401958981,1768421444999,-2178.41472136,0.00021918,2]
[401958982,1768421445008,-4901.43312306,0.00021918,2]
[401958985,1768421445018,-8713.65888545,0.00021918,2]
[401958987,1768421445028,-683.587352,0.00021918,2]
[401958989,1768421445037,-683.587352,0.00021918,2]
[401958991,1768421445048,-683.587352,0.00021918,2]
[401958992,1768421445057,-683.587352,0.00021918,2]
[401958994,1768421445067,-187.824189,0.00021918,2]
[401958997,1768421445077,-795.987765,0.00021918,2]
[401958999,1768421445088,-795.987765,0.00021918,2]
[401959000,1768421445097,-151.0,0.00021918,2]
[401959002,1768421445107,-795.987765,0.00021918,2]
[401959004,1768421445117,-795.987765,0.00021918,2]
[401959007,1768421445128,-151.0,0.00021918,2]
[401959009,1768421445137,-151.0,0.00021918,2]
[401959011,1768421445147,-151.0,0.00021918,2]
[401959013,1768421445157,-151.0,0.00021918,2]
[401959015,1768421445166,-151.0,0.00021918,2]
[401959017,1768421445178,-151.0,0.00021918,2]
[401959019,1768421445189,-1303.742173,0.00021918,2]
[401959021,1768421445198,-282.093229,0.00021918,2]
[401959023,1768421445208,-1303.742173,0.00021918,2]
[401959025,1768421445217,-1303.742173,0.00021918,2]
[401959026,1768421445228,-1303.742173,0.00021918,2]
[401959028,1768421445237,-263.265987,0.00021918,2]
[401959030,1768421445246,-263.265987,0.00021918,2]
[401959032,1768421445257,-263.265987,0.00021918,2]
[401959034,1768421445266,-263.265987,0.00021918,2]
[401959036,1768421445276,-371.616493,0.00021918,2]
[401959038,1768421445286,-371.616493,0.00021918,2]
[401959040,1768421445295,-371.616493,0.00021918,2]
[401959043,1768421445306,-371.616493,0.00021918,2]
[401959045,1768421445316,-151.0,0.00021918,2]
[401959047,1768421445326,-445.25118972,0.00021918,2]
[401959049,1768421445335,-151.0,0.00021918,2]
[401959051,1768421445344,-151.0,0.00021918,2]
[401959053,1768421445353,-1779.22375414,0.00021918,2]
[401959055,1768421445365,-151.0,0.00021918,2]
[401959057,1768421445376,-151.0,0.00021918,2]
[401959058,1768421445385,-151.0,0.00021918,2]
[401959061,1768421445396,-151.0,0.00021918,2]
[401959062,1768421445407,-151.0,0.00021918,2]
[401959064,1768421445416,-151.0,0.00021918,2]
[401959066,1768421445427,-215.302666,0.00021918,2]
[401959068,1768421445439,-11815.99803787,0.00021945,2]
[401959071,1768421445449,-2137.09,0.00022,7]
[401959072,1768421445458,-1365.8198747,0.00022045,2]
[401959074,1768421445468,-50143.4887687,0.00022045,2]
[401959076,1768421445478,-1870.0078382,0.00022045,2]
[401959078,1768421445487,-50143.4887688,0.00022045,2]
[401959080,1768421445496,-151.0,0.00022045,2]
[401959082,1768421445506,-50143.4887688,0.00022045,2]
[401959084,1768421445517,-935.003919,0.00022045,2]
[401959086,1768421445526,-830.8,0.00022117,2]
[401959088,1768421445536,-2953.11393828,0.00022122,2]
[401959090,1768421445545,-2953.11393833,0.00022293,2]
[401959092,1768421445554,-300.0,0.00022466,2]
[401959094,1768421445563,-200.0,0.00022466,2]
[401959096,1768421445573,-750.0,0.00022466,2]
[401959098,1768421445583,-224.02,0.000225,7]
[401959100,1768421445592,-167.77,0.000225,7]
[401959102,1768421445602,-4109.371692,0.00022604,30]
[401959104,1768421445611,-409.531329,0.00022604,30]
[401959106,1768421445621,-2258.0,0.0002261,2]
[401959108,1768421445630,-928.0182,0.00022685,30]
[401959110,1768421445639,-1053.07856721,0.0002272,15]
[401959112,1768421445649,-156.13,0.000229,2]
[401959114,1768421445658,-196.93,0.000229,7]
[401959116,1768421445668,-4165.64,0.000229,14]
[401959118,1768421445679,-450.0,0.00023014,2]
[401959120,1768421445688,-260.92385342,0.00023014,2]
[401959122,1768421445698,-1400.0,0.00023014,2]
[401959124,1768421445708,-850.0,0.00023014,2]
[401959126,1768421445717,-230.42,0.000231,7]
[401959128,1768421445727,-151.0,0.000231,5]
[401959130,1768421445736,-29292.64,0.000231,2]
[401959132,1768421445746,-293.503999,0.000231,2]
[401959134,1768421445755,-151.0,0.000231,2]
[401959137,1768421445806,-293.503999,0.000231,2]
[401959138,1768421445816,-151.0,0.000231,2]
[401959140,1768421445825,-293.503999,0.000231,2]
[401959141,1768421445835,-151.0,0.000231,2]
[401959143,1768421445844,-293.503999,0.000231,2]
[401959145,1768421445852,-151.0,0.000231,2]
[401959147,1768421445861,-582.913993,0.000231,2]
[401959149,1768421445871,-582.913993,0.000231,2]
[401959151,1768421445880,-582.913993,0.000231,2]
[401959153,1768421445889,-582.913993,0.000231,2]
[401959155,1768421445898,-151.0,0.000231,2]
[401959157,1768421445907,-151.0,0.000231,2]
[401959159,1768421445916,-151.0,0.000231,2]
[401959161,1768421445927,-445.41152664,0.00023111,36]
[401959163,1768421445936,-182.95072115,0.0002315,2]
[401959166,1768421445945,-900.0,0.00023172,2]
[401959167,1768421445954,-827.46375252,0.00023175,2]
[401959169,1768421445962,-900.0,0.00023177,2]
[401959171,1768421445972,-1700.0,0.00023224,2]
[401959173,1768421445980,-500.0,0.00023243,2]
[401959176,1768421445989,-293.85068442,0.00023263,2]
[401959178,1768421445998,-11815.99803781,0.00023273,2]
[401959180,1768421446007,-1700.0,0.00023301,2]
[401959182,1768421446016,-1700.0,0.00023304,2]
[401959184,1768421446025,-1700.0,0.00023324,2]
[401959186,1768421446034,-500.0,0.00023324,2]
[401959188,1768421446043,-1700.0,0.00023333,2]
[401959190,1768421446052,-1442.0,0.00023333,2]
[401959192,1768421446061,-1442.0,0.00023377,2]
[401959194,1768421446070,-1000.0,0.00023386,10]
[401959196,1768421446080,-791.0,0.00023386,10]
[401959198,1768421446089,-1442.0,0.0002339,2]
[401959200,1768421446098,-900.0,0.00023396,2]
[401959202,1768421446107,-2137.09,0.000234,7]
[401959204,1768421446115,-522.88356834,0.000234,2]
[401959206,1768421446124,-151.0,0.00023407,2]
[401959208,1768421446133,-500.0,0.00023408,2]
[401959210,1768421446142,-217.39345499,0.00023408,2]
[401959212,1768421446151,-181.98724729,0.00023408,2]
[401959214,1768421446159,-329.81805713,0.00023408,2]
[401959216,1768421446168,-1700.0,0.00023411,2]
[401959219,1768421446178,-830.8,0.00023414,2]
[401959220,1768421446188,-1442.0,0.00023425,2]
[401959223,1768421446198,-500.0,0.00023443,2]
[401959225,1768421446207,-500.0,0.00023453,2]
[401959227,1768421446217,-1442.0,0.00023457,2]
[401959229,1768421446226,-1700.0,0.00023501,2]
[401959231,1768421446235,-900.0,0.00023512,2]
[401959233,1768421446247,-1053.07856721,0.00023531,16]
[401959235,1768421446256,-217.39345499,0.00023549,9]
[401959237,1768421446264,-600.0,0.00023562,2]
[401959239,1768421446273,-1050.0,0.00023562,2]
[401959241,1768421446283,-900.0,0.00023587,2]
[401959243,1768421446291,-1700.0,0.00023588,2]
[401959245,1768421446300,-1442.0,0.00023601,2]
[401959246,1768421446310,-500.0,0.00023614,2]
[401959249,1768421446320,-1700.0,0.00023668,2]
[401959251,1768421446330,-900.0,0.00023677,2]
[401959253,1768421446339,-329.81805713,0.0002369,17]
[401959255,1768421446349,-217.39345499,0.0002369,17]
[401959257,1768421446363,-364.0,0.00023697,2]
[401959259,1768421446372,-900.0,0.00023697,2]
[401959261,1768421446381,-155.31,0.000237,2]
[401959263,1768421446390,-4289.84238407,0.000237,14]
[401959265,1768421446399,-500.0,0.00023721,2]
[401959267,1768421446408,-1700.0,0.00023737,2]
[401959269,1768421446418,-900.0,0.00023746,2]
[401959271,1768421446428,-266.26879672,0.00023781,11]
[401959273,1768421446439,-1700.0,0.00023796,2]
[401959275,1768421446448,-224.02,0.000238,7]
[401959277,1768421446458,-217.39345499,0.0002383,25]
[401959279,1768421446468,-171.590908,0.00023831,2]
[401959281,1768421446477,-285.163634,0.00023831,2]
[401959283,1768421446486,-151.0,0.00023831,2]
[401959285,1768421446495,-151.0,0.00023831,2]
[401959287,1768421446506,-1442.0,0.00023831,2]
[401959289,1768421446517,-1442.0,0.00023862,2]
[401959291,1768421446527,-1442.0,0.00023877,2]
[401959293,1768421446537,-1700.0,0.00023878,2]
[401959295,1768421446546,-1700.0,0.00023892,2]
[401959297,1768421446555,-2432.94779578,0.000239,2]
[401959299,1768421446564,-1442.0,0.00023904,2]
[401959301,1768421446573,-900.0,0.00023917,2]
[401959303,1768421446582,-329.81805713,0.00023971,32]
[401959307,1768421446591,-217.39345499,0.00023971,32]
[401959310,1768421446600,-1442.0,0.00023973,2]
[401959312,1768421446609,-128967.02373672,0.00024,2]
[401959314,1768421446618,-1931.32974169,0.00024,60]
[401959316,1768421446627,-1736.447596,0.00024,2]
[401959318,1768421446636,-465.90719096,0.00024,2]
[401959320,1768421446646,-1041.66666667,0.00024,7]
[401959322,1768421446655,-683.587352,0.00024,2]
[401959324,1768421446664,-683.587352,0.00024,2]
[401959326,1768421446672,-683.587352,0.00024,2]
[401959328,1768421446682,-683.587352,0.00024,2]
[401959330,1768421446691,-795.987765,0.00024,2]
[401959332,1768421446701,-795.987765,0.00024,2]
[401959334,1768421446710,-231.464097,0.00024,2]
[401959336,1768421446719,-795.987765,0.00024,2]
[401959338,1768421446728,-795.987765,0.00024,2]
[401959340,1768421446737,-151.0,0.00024,2]
[401959342,1768421446746,-151.0,0.00024,2]
[401959344,1768421446755,-151.0,0.00024,2]
[401959346,1768421446764,-151.0,0.00024,2]
[401959348,1768421446773,-151.0,0.00024,2]
[401959350,1768421446783,-1303.742173,0.00024,2]
[401959352,1768421446792,-1303.742173,0.00024,2]
[401959354,1768421446801,-1303.742173,0.00024,2]
[401959356,1768421446810,-1303.742173,0.00024,2]
[401959358,1768421446819,-263.265987,0.00024,2]
[401959360,1768421446828,-263.265987,0.00024,2]
[401959362,1768421446837,-263.265987,0.00024,2]
[401959364,1768421446846,-263.265987,0.00024,2]
[401959366,1768421446855,-371.616493,0.00024,2]
[401959368,1768421446865,-371.616493,0.00024,2]
[401959370,1768421446873,-371.616493,0.00024,2]
[401959372,1768421446882,-371.616493,0.00024,2]
[401959374,1768421446892,-151.0,0.00024,2]
[401959376,1768421446901,-151.0,0.00024,2]
[401959378,1768421446910,-151.0,0.00024,2]
[401959380,1768421446919,-151.0,0.00024,2]
[401959382,1768421446928,-151.0,0.00024,2]
[401959384,1768421446937,-151.0,0.00024,2]
[401959387,1768421446947,-276.465874,0.00024,2]
[401959388,1768421446956,-151.0,0.00024,2]
[401959390,1768421446964,-151.0,0.00024,2]
[401959392,1768421446974,-900.0,0.00024007,2]
[401959395,1768421446983,-500.0,0.00024009,2]
[401959397,1768421446992,-900.0,0.00024014,2]
[401959399,1768421447002,-10000.0,0.00024042,2]
[401959401,1768421447011,-180.18378746,0.00024044,2]
[401959402,1768421447020,-200.0,0.00024099,2]
[401959404,1768421447029,-196.93,0.000241,7]
[401959406,1768421447038,-4165.64,0.000241,14]
[401959408,1768421447047,-29292.64,0.000241,2]
[401959410,1768421447056,-750.0,0.0002411,2]
[401959412,1768421447066,-1601.4141805,0.0002411,2]
[401959415,1768421447075,-217.39345499,0.00024112,40]
[401959417,1768421447085,-900.0,0.00024114,2]
[401959419,1768421447094,-500.0,0.00024115,2]
[401959421,1768421447103,-500.0,0.00024115,2]
[401959422,1768421447112,-500.0,0.00024115,2]
[401959424,1768421447121,-350.00260819,0.00024115,2]
[401959426,1768421447130,-200.0,0.00024141,2]
[401959428,1768421447139,-511930.29645519,0.00024142,2]
[401959430,1768421447148,-151.0,0.00024142,2]
[401959432,1768421447157,-151.0,0.00024142,2]
[401959434,1768421447167,-151.0,0.00024142,2]
[401959436,1768421447176,-151.0,0.00024142,2]
[401959438,1768421447189,-151.0,0.00024142,2]
[401959440,1768421447198,-293.503999,0.00024142,2]
[401959442,1768421447207,-151.0,0.00024142,2]
[401959444,1768421447216,-293.503999,0.00024142,2]
[401959446,1768421447224,-151.0,0.00024142,2]
[401959448,1768421447233,-293.503999,0.00024142,2]
[401959450,1768421447242,-151.0,0.00024142,2]
[401959452,1768421447251,-293.503999,0.00024142,2]
[401959454,1768421447261,-151.0,0.00024142,2]
[401959456,1768421447270,-582.913993,0.00024142,2]
[401959458,1768421447279,-582.913993,0.00024142,2]
[401959460,1768421447288,-582.913993,0.00024142,2]
[401959462,1768421447297,-582.913993,0.00024142,2]
[401959464,1768421447306,-151.0,0.00024142,2]
[401959466,1768421447315,-151.0,0.00024142,2]
[401959468,1768421447325,-683.587352,0.00024142,2]
[401959470,1768421447334,-683.587352,0.00024142,2]
[401959472,1768421447343,-683.587352,0.00024142,2]
[401959474,1768421447352,-683.587352,0.00024142,2]
[401959477,1768421447364,-795.987765,0.00024142,2]
[401959479,1768421447373,-795.987765,0.00024142,2]
[401959481,1768421447382,-795.987765,0.00024142,2]
[401959483,1768421447391,-795.987765,0.00024142,2]
[401959485,1768421447401,-151.0,0.00024142,2]
[401959487,1768421447411,-151.0,0.00024142,2]
[401959489,1768421447420,-151.0,0.00024142,2]
[401959491,1768421447430,-151.0,0.00024142,2]
[401959493,1768421447440,-1303.742173,0.00024142,2]
[401959495,1768421447449,-1303.742173,0.00024142,2]
[401959497,1768421447459,-1303.742173,0.00024142,2]
[401959499,1768421447468,-1303.742173,0.00024142,2]
[401959501,1768421447478,-263.265987,0.00024142,2]
[401959503,1768421447487,-263.265987,0.00024142,2]
[401959505,1768421447497,-263.265987,0.00024142,2]
[401959506,1768421447507,-263.265987,0.00024142,2]
[401959507,1768421447517,-371.616493,0.00024142,2]
[401959508,1768421447526,-371.616493,0.00024142,2]
[401959509,1768421447536,-371.616493,0.00024142,2]
[401959510,1768421447546,-371.616493,0.00024142,2]
[401959511,1768421447556,-151.0,0.00024142,2]
[401959512,1768421447567,-151.0,0.00024142,2]
[401959513,1768421447576,-151.0,0.00024142,2]
[401959514,1768421447586,-151.0,0.00024142,2]
[401959515,1768421447596,-151.0,0.00024142,2]
[401959516,1768421447606,-151.0,0.00024142,2]
[401959517,1768421447616,-151.0,0.00024142,2]
[401959518,1768421447625,-151.0,0.00024142,2]
[401959519,1768421447638,-1700.0,0.00024145,2]
[401959520,1768421447647,-1367.0,0.00024151,2]
[401959521,1768421447656,-2147.0,0.00024151,2]
[401959522,1768421447666,-629.0,0.00024151,2]
[401959523,1768421447676,-900.0,0.00024153,2]
[401959524,1768421447685,-1700.0,0.00024176,2]
[401959525,1768421447695,-50340.12423014,0.000242,2]
[401959526,1768421447705,-190.0,0.00024211,2]
[401959527,1768421447714,-900.0,0.00024211,2]
[401959528,1768421447724,-900.0,0.0002422,2]
[401959529,1768421447734,-1700.0,0.00024235,2]
[401959530,1768421447743,-1700.0,0.0002424,2]
[401959531,1768421447753,-329.81805713,0.00024253,48]
[401959532,1768421447763,-217.39345499,0.00024253,48]
[401959533,1768421447773,-1442.0,0.00024255,2]
[401959534,1768421447782,-1442.0,0.00024304,2]
[401959535,1768421447792,-900.0,0.00024305,2]
[401959536,1768421447801,-1053.07856721,0.00024341,18]
[401959537,1768421447811,-1700.0,0.00024354,2]
[401959538,1768421447821,-1870.0078382,0.00024357,2]
[401959539,1768421447830,-935.003919,0.00024357,2]
[401959540,1768421447840,-1700.0,0.00024362,2]
[401959541,1768421447850,-1082.98429516,0.00024382,2]
[401959542,1768421447860,-181.98724729,0.00024394,56]
[401959543,1768421447871,-217.39345499,0.00024394,56]
[401959544,1768421447880,-500.0,0.00024398,2]
[401959545,1768421447890,-2137.09,0.000244,7]
[401959547,1768421447900,-900.0,0.00024409,2]
[401959549,1768421447910,-1442.0,0.00024446,2]
[401959551,1768421447920,-1442.0,0.00024454,2]
[401959553,1768421447931,-791.34915639,0.00024469,2]
[401959555,1768421447941,-1700.0,0.00024476,2]
[401959557,1768421447950,-1126.0,0.000245,5]
[401959559,1768421447959,-1700.0,0.00024512,2]
[401959561,1768421447969,-30000.0,0.00024512,2]
[401959563,1768421447979,-250.0,0.00024512,2]
[401959565,1768421447988,-283.61044671,0.00024512,2]
[401959566,1768421447998,-250.0,0.00024512,2]
[401959567,1768421448008,-151.0,0.00024512,2]
[401959569,1768421448017,-151.0,0.00024512,2]
[401959571,1768421448027,-250.0,0.00024512,2]
[401959573,1768421448038,-250.0,0.00024512,2]
[401959575,1768421448047,-250.0,0.00024512,2]
[401959577,1768421448056,-151.0,0.00024512,2]
[401959579,1768421448066,-250.0,0.00024512,2]
[401959581,1768421448075,-250.0,0.00024512,2]
[401959583,1768421448086,-255.9181721,0.00024512,2]
[401959584,1768421448096,-151.0,0.00024512,2]
[401959585,1768421448105,-294.03317915,0.00024512,2]
[401959586,1768421448115,-250.0,0.00024512,2]
[401959587,1768421448124,-151.0,0.00024512,2]
[401959588,1768421448134,-250.0,0.00024512,2]
[401959589,1768421448144,-151.0,0.00024512,2]
[401959590,1768421448153,-500.0,0.00024512,2]
[401959591,1768421448164,-250.0,0.00024512,2]
[401959592,1768421448174,-151.0,0.00024512,2]
[401959593,1768421448184,-250.0,0.00024512,2]
[401959594,1768421448195,-500.0,0.00024512,2]
[401959595,1768421448205,-151.0,0.00024512,2]
[401959596,1768421448215,-250.0,0.00024512,2]
[401959597,1768421448224,-500.0,0.00024512,2]
[401959598,1768421448234,-151.0,0.00024512,2]
[401959599,1768421448244,-250.0,0.00024512,2]
[401959600,1768421448254,-500.0,0.00024512,2]
[401959601,1768421448264,-151.0,0.00024512,2]
[401959602,1768421448273,-250.0,0.00024512,2]
[401959603,1768421448284,-500.0,0.00024512,2]
[401959604,1768421448294,-151.0,0.00024512,2]
[401959606,1768421448303,-160.0,0.00024512,2]
[401959608,1768421448312,-250.0,0.00024512,2]
[401959610,1768421448322,-500.0,0.00024512,2]
[401959611,1768421448331,-2230.315306,0.00024512,2]
[401959614,1768421448341,-151.0,0.00024512,2]
[401959616,1768421448350,-250.0,0.00024512,2]
[401959618,1768421448364,-160.0,0.00024512,2]
[401959620,1768421448373,-500.0,0.00024512,2]
[401959622,1768421448382,-250.0,0.00024512,2]
[401959624,1768421448391,-151.0,0.00024512,2]
[401959626,1768421448402,-250.0,0.00024512,2]
[401959628,1768421448411,-164.08273023,0.00024512,2]
[401959630,1768421448421,-250.0,0.00024512,2]
[401959632,1768421448432,-151.0,0.00024512,2]
[401959634,1768421448442,-250.0,0.00024512,2]
[401959636,1768421448452,-500.0,0.00024512,2]
[401959638,1768421448463,-245.0,0.00024512,2]
[401959640,1768421448472,-250.0,0.00024512,2]
[401959642,1768421448481,-250.0,0.00024512,2]
[401959644,1768421448490,-500.0,0.00024512,2]
[401959646,1768421448502,-250.0,0.00024512,2]
[401959648,1768421448512,-250.0,0.00024512,2]
[401959650,1768421448521,-500.0,0.00024512,2]
[401959652,1768421448531,-250.0,0.00024512,2]
[401959654,1768421448540,-271.32439801,0.00024512,2]
[401959656,1768421448549,-500.0,0.00024512,2]
[401959658,1768421448559,-250.0,0.00024512,2]
[401959660,1768421448569,-500.0,0.00024512,2]
[401959662,1768421448578,-500.0,0.00024512,2]
[401959664,1768421448588,-500.0,0.00024512,2]
[401959666,1768421448598,-151.0,0.00024512,2]
[401959668,1768421448607,-500.0,0.00024512,2]
[401959670,1768421448617,-500.0,0.00024512,2]
[401959672,1768421448627,-500.0,0.00024512,2]
[401959674,1768421448637,-461.67526834,0.00024512,2]
[401959676,1768421448647,-168.3888056,0.00024512,2]
[401959678,1768421448657,-174.61919141,0.00024512,2]
[401959680,1768421448666,-181.08010149,0.00024512,2]
[401959682,1768421448676,-187.78006525,0.00024512,2]
[401959684,1768421448686,-194.72792766,0.00024512,2]
[401959685,1768421448696,-201.93286099,0.00024512,2]
[401959687,1768421448706,-209.40437684,0.00024512,2]
[401959688,1768421448716,-250.0,0.00024512,2]
[401959689,1768421448726,-217.15233878,0.00024512,2]
[401959690,1768421448735,-250.0,0.00024512,2]
[401959691,1768421448745,-151.0,0.00024512,2]
[401959692,1768421448755,-225.18697532,0.00024512,2]
[401959693,1768421448764,-168.3888056,0.00024512,2]
[401959694,1768421448774,-250.0,0.00024512,2]
[401959695,1768421448784,-151.0,0.00024512,2]
[401959696,1768421448793,-233.51889341,0.00024512,2]
[401959697,1768421448803,-250.0,0.00024512,2]
[401959698,1768421448812,-151.0,0.00024512,2]
[401959699,1768421448822,-242.15909246,0.00024512,2]
[401959700,1768421448831,-250.0,0.00024512,2]
[401959701,1768421448840,-151.0,0.00024512,2]
[401959702,1768421448850,-251.11897888,0.00024512,2]
[401959703,1768421448859,-250.0,0.00024512,2]
[401959704,1768421448869,-151.0,0.00024512,2]
[401959705,1768421448879,-260.4103811,0.00024512,2]
[401959706,1768421448888,-250.0,0.00024512,2]
[401959707,1768421448898,-151.0,0.00024512,2]
[401959708,1768421448907,-270.0455652,0.00024512,2]
[401959709,1768421448917,-250.0,0.00024512,2]
[401959710,1768421448927,-151.0,0.00024512,2]
[401959711,1768421448937,-280.03725112,0.00024512,2]
[401959713,1768421448947,-273.43146715,0.00024512,2]
[401959714,1768421448956,-151.0,0.00024512,2]
[401959715,1768421448966,-290.39862941,0.00024512,2]
[401959717,1768421448976,-151.0,0.00024512,2]
[401959718,1768421448985,-301.1433787,0.00024512,2]
[401959719,1768421448995,-163.79209166,0.00024512,2]
[401959720,1768421449005,-1442.0,0.00024518,2]
[401959721,1768421449014,-1700.0,0.00024534,2]
[401959722,1768421449023,-329.81805713,0.00024534,63]
[401959723,1768421449033,-217.39345499,0.00024534,63]
[401959724,1768421449042,-900.0,0.00024562,2]
[401959725,1768421449051,-500.0,0.00024569,2]
[401959726,1768421449061,-11815.99803781,0.00024602,2]
[401959727,1768421449070,-900.0,0.00024603,2]
[401959728,1768421449080,-445.41152664,0.00024603,49]
[401959729,1768421449090,-1442.0,0.00024611,2]
[401959730,1768421449099,-500.0,0.00024618,2]
[401959731,1768421449109,-1700.0,0.00024632,2]
[401959732,1768421449118,-514.22907277,0.0002465,2]
[401959733,1768421449127,-156856.39382059,0.0002465,2]
[401959734,1768421449137,-1442.0,0.00024657,2]
[401959735,1768421449146,-300.0,0.00024658,7]
[401959736,1768421449156,-900.0,0.00024658,2]
[401959737,1768421449165,-200.0,0.00024658,2]
[401959738,1768421449175,-380.0,0.00024658,2]